{"text_format":"1","workbook":"xlsx","n_sheets":3,"sheets":["Relación de gastos","Relación de ingresos ","gastos e ingresos"],"not_rendered":{"charts":0,"images":2,"macros":1,"external_links":0,"defined_names":8,"comments":3,"pivot_tables":0},"unopened":[],"bounds":{"document_bytes":16777216,"sheet_cells":100000,"rows_first":2000,"rows_last":500,"rows_between":2000,"halvings":0,"cell_chars":16384,"cell_head_chars":4096},"cells_cut":0,"cells_raw":0,"read":"whole","date_system":"1900"}

{"sheet":"Relación de gastos","index":0,"n_rows":186,"n_cols":10,"rows_kept":186,"cut":false,"hidden":false,"merged":[[148,0,148,10],[34,0,34,10],[40,0,40,10],[65,9,65,10],[20,9,20,10],[21,0,21,6],[21,9,21,10],[22,0,22,10],[23,9,23,10],[24,9,24,10],[25,9,25,10],[31,9,31,10],[33,0,33,6],[39,0,39,6],[28,0,28,10],[47,9,47,10],[57,9,57,10],[56,9,56,10],[55,9,55,10],[54,9,54,10],[53,9,53,10],[51,9,51,10],[50,9,50,10],[48,9,48,10],[144,0,144,2],[144,3,144,6],[144,9,144,10],[145,0,145,5],[145,9,145,10],[134,9,134,10],[135,9,135,10],[136,9,136,10],[137,0,137,6],[137,9,137,10],[138,0,138,10],[139,9,139,10],[140,9,140,10],[141,9,141,10],[128,9,128,10],[129,9,129,10],[130,9,130,10],[131,0,131,6],[131,9,131,10],[132,0,132,10],[133,9,133,10],[142,9,142,10],[143,0,143,6],[143,9,143,10],[120,0,120,10],[121,9,121,10],[122,9,122,10],[123,9,123,10],[124,9,124,10],[125,0,125,6],[125,9,125,10],[126,0,126,10],[127,9,127,10],[112,9,112,10],[113,0,113,6],[113,9,113,10],[114,0,114,10],[115,9,115,10],[116,9,116,10],[117,9,117,10],[118,9,118,10],[119,0,119,6],[119,9,119,10],[104,9,104,10],[105,9,105,10],[106,9,106,10],[107,0,107,6],[107,9,107,10],[108,0,108,10],[109,9,109,10],[110,9,110,10],[111,9,111,10],[97,9,97,10],[98,9,98,10],[99,9,99,10],[100,9,100,10],[96,0,96,10],[101,0,101,6],[101,9,101,10],[102,0,102,10],[103,9,103,10],[91,9,91,10],[92,9,92,10],[85,9,85,10],[90,0,90,10],[87,9,87,10],[88,9,88,10],[93,9,93,10],[94,9,94,10],[95,0,95,6],[95,9,95,10],[46,0,46,10],[82,0,82,2],[82,3,82,6],[82,9,82,10],[84,0,84,10],[89,0,89,6],[89,9,89,10],[77,9,77,10],[79,9,79,10],[80,9,80,10],[81,0,81,6],[81,9,81,10],[75,9,75,10],[62,9,62,10],[61,9,61,10],[76,0,76,10],[70,0,70,10],[75,0,75,6],[71,9,71,10],[74,9,74,10],[49,9,49,10],[73,9,73,10],[64,0,64,10],[69,0,69,6],[63,0,63,6],[57,0,57,6],[52,0,52,10],[58,0,58,10],[51,0,51,6],[67,9,67,10],[66,9,66,10],[63,9,63,10],[59,9,59,10],[69,9,69,10],[68,9,68,10],[60,9,60,10],[3,0,3,1],[7,1,8,1],[7,0,8,0],[6,0,6,4],[17,9,17,10],[18,9,18,10],[19,9,19,10],[26,9,26,10],[27,0,27,6],[27,9,27,10],[12,9,12,10],[7,9,7,10],[8,9,8,10],[10,0,10,10],[14,9,14,10],[7,3,7,4],[9,0,9,8],[45,0,45,6],[35,9,35,10],[15,9,15,10],[41,9,41,10],[39,9,39,10],[38,9,38,10],[37,9,37,10],[36,9,36,10],[16,0,16,10],[30,9,30,10],[29,9,29,10],[33,9,33,10],[32,9,32,10],[158,0,158,10],[160,0,160,10],[161,0,161,10],[162,0,162,10],[163,0,163,10],[0,0,0,10],[4,0,4,1],[15,0,15,6],[2,2,2,3],[3,2,3,3],[4,2,4,3],[11,9,11,10],[2,0,2,1],[45,9,45,10],[2,4,2,6],[3,4,3,6],[4,4,4,6],[44,9,44,10],[43,9,43,10],[42,9,42,10],[7,2,8,2],[2,7,2,8],[3,7,3,8],[4,7,4,8],[182,0,182,10],[183,0,183,10],[185,0,185,10],[154,1,154,2],[184,0,184,10],[83,0,83,10],[174,0,174,10],[175,0,175,10],[176,0,176,10],[177,0,177,10],[178,0,178,10],[179,0,179,10],[180,0,180,10],[181,0,181,10],[165,0,165,10],[166,0,166,10],[167,0,167,10],[168,0,168,10],[169,0,169,10],[170,0,170,10],[171,0,171,10],[172,0,172,10],[173,0,173,10],[149,0,150,9]]}
["Relación clasificada de todos los gastos realizados para la ejecución de la actividad subvencionada"]
[]
["Persona física/jurídica beneficiaria:         ",null,null,null,"Importe total del proyecto:",null,null,null,null,"euros"]
["Código de subvención:",null,null,null,"Importe de la subvención otorgada:",null,null,null,null,"euros"]
["Nombre del proyecto subvencionado:",null,null,null,"Período de ejecución del proyecto subvencionado:",null,null,null,null,"a"]
[]
["Gastos del proyecto/actividad/servicio subvencionado (*)"]
["Núm. de orden (0)","Número de documento: justificantes gasto personal (1), factura o recibo/tiquet(2)","Concepto de la factura / \ndocumento probatorio equivalente","Emisor/a de la factura",null,"Fecha de emisión","Importe total de la factura","Importe imputable (dedicado) al proyecto (3)","Importe imputable a la subvención municipal (4)","Observaciones"]
[null,null,null,"NIF","Nombre","dd/mm/aaaa","euros","euros","euros"]
["GASTOS DIRECTOS (Aquellos que se identifican directamente con el proyecto)"]
["D1.  Nóminas y seguridad social IRPF (régimen general o régimen de autónomos) del personal propio vinculado al proyecto subvencionado de la Agrupación (MÁX. 50% subvención)"]
[]
[]
[]
[]
["Subtotal D1",null,null,null,null,null,null,{"$f":"SUM(H12:H15)","v":0},{"$f":"SUM(I12:I15)","v":0}]
["D2.  Trabajos realizados por profesionales y empresas externas directamente vinculadas al proyecto subvencionado"]
[]
[]
[]
[]
["Subtotal D2",null,null,null,null,null,null,{"$f":"SUM(H18:H21)","v":0},{"$f":"SUM(I18:I21)","v":0}]
["D3. Alquiler de bienes muebles/inmuebles directamente vinculados al proyecto subvencionado"]
[]
[]
[]
[]
["Subtotal D3",null,null,null,null,null,null,{"$f":"SUM(H24:H27)","v":0},{"$f":"SUM(I24:I27)","v":0}]
["D4. Adquisición de materiales y bienes consumibles íntegramente imputables al proyecto subvencionado"]
[]
[]
[]
[]
["Subtotal D4",null,null,null,null,null,null,{"$f":"SUM(H30:H33)","v":0},{"$f":"SUM(I30:I33)","v":0}]
["D5. Transporte – mensajería imputables al projecte subvencionado"]
[]
[]
[]
[]
["Subtotal D5",null,null,null,null,null,null,{"$f":"SUM(H36:H39)","v":0},{"$f":"SUM(I36:I39)","v":0}]
["D6. Publicidad y propaganda de las actividades directamente vinculadas al proyecto subvencionado"]
[]
[]
[]
[]
["Subtotal D6",null,null,null,null,null,null,{"$f":"SUM(H42:H45)","v":0},{"$f":"SUM(I42:I45)","v":0}]
["D7.  Alojamiento y dietas, del personal contratado y voluntarios"]
[]
[]
[]
[]
["Subtotal D7",null,null,null,null,null,null,{"$f":"SUM(H48:H51)","v":0},{"$f":"SUM(I48:I51)","v":0}]
["D8.  Ayudas para el transporte de los/as participantes de los proyectos en caso de que sea necesario de manera justificada"]
[]
[]
[]
[]
["Subtotal D8",null,null,null,null,null,null,{"$f":"SUM(H54:H57)","v":0},{"$f":"SUM(I54:I57)","v":0}]
["D9.  Viajes y desplazamientos imputables a las actividades del proyecto subvencionado"]
[]
[]
[]
[]
["Subtotal D9",null,null,null,null,null,null,{"$f":"SUM(H60:H63)","v":0},{"$f":"SUM(I60:I63)","v":0}]
["D10. Tributos, cuando sean abonados directamente por la persona jurídica o física beneficiaria"]
[]
[]
[]
[]
["Subtotal D10",null,null,null,null,null,null,{"$f":"SUM(H66:H69)","v":0},{"$f":"SUM(I66:I69)","v":0}]
["D11.  Otros gastos que de manera justificada y por la tipología del proyecto puedan imputarse directament al proyecto subvencionado"]
[]
[]
[]
[]
["Subtotal D11",null,null,null,null,null,null,{"$f":"SUM(H72:H75)","v":0},{"$f":"SUM(I72:I75)","v":0}]
["D12. Aportaciones a fondos de contingencia "]
[]
[]
[]
[]
["Subtotal D12",null,null,null,null,null,null,{"$f":"SUM(H78:H81)","v":0},{"$f":"SUM(I78:I81)","v":0}]
["TOTAL GASTOS DIRECTOS ",null,null,"TOTAL GASTOS DIRECTOS",null,null,null,{"$f":"+H16+H34+H40+H46+H52+H58+H64+H70+H76+H82+H28+H22","v":0},{"$f":"+I16+I34+I40+I46+I52+I58+I64+I70+I76+I82+I28+I22","v":0}]
["GASTOS INDIRECTOS (no se pueden asignar directamente al proyecto sin utilizar algún % de asignación)"]
["I1.  Personal de soporte al proyecto subvencionado (nóminas y seguridad social)"]
[]
[]
[]
[]
["Subtotal I1",null,null,null,null,null,null,{"$f":"SUM(H86:H89)","v":0},{"$f":"SUM(I86:I89)","v":0}]
["I2.  Seguros"]
[]
[]
[]
[]
["Subtotal I2",null,null,null,null,null,null,{"$f":"SUM(H92:H95)","v":0},{"$f":"SUM(I92:I95)","v":0}]
["I.3  Amortización"]
[]
[]
[]
[]
["Subtotal I3",null,null,null,null,null,null,{"$f":"SUM(H98:H101)","v":0},{"$f":"SUM(I98:I101)","v":0}]
["I.4  Alquiler de bienes inmuebles"]
[]
[]
[]
[]
["Subtotal I4",null,null,null,null,null,null,{"$f":"SUM(H104:H107)","v":0},{"$f":"SUM(I104:I107)","v":0}]
["I.5  Adquisición de materiales y bienes consumibles parcialmente imputables al proyecto subvencionado"]
[]
[]
[]
[]
["Subtotal I5",null,null,null,null,null,null,{"$f":"SUM(H110:H113)","v":0},{"$f":"SUM(I110:I113)","v":0}]
["I.6  Mantenimiento de edificios y/o instalaciones"]
[]
[]
[]
[]
["Subtotal I6",null,null,null,null,null,null,{"$f":"SUM(H116:H119)","v":0},{"$f":"SUM(I116:I119)","v":0}]
["I.7  Comunicaciones (teléfono, correos, conexión a internet)"]
[]
[]
[]
[]
["Subtotal I7",null,null,null,null,null,null,{"$f":"SUM(H122:H125)","v":0},{"$f":"SUM(I122:I125)","v":0}]
["I.8  Gastos financieros"]
[]
[]
[]
[]
["Subtotal I8",null,null,null,null,null,null,{"$f":"SUM(H128:H131)","v":0},{"$f":"SUM(I128:I131)","v":0}]
["I.9  Suministros "]
[]
[]
[]
[]
["Subtotal I9",null,null,null,null,null,null,{"$f":"SUM(H134:H137)","v":0},{"$f":"SUM(I134:I137)","v":0}]
["I.10  Trabajo realizado por otras empresas, parcialmente imputables al proyecto subvencionado (limpieza, seguridad...)"]
[]
[]
[]
[]
["Subtotal I10",null,null,null,null,null,null,{"$f":"SUM(H140:H143)","v":0},{"$f":"SUM(I140:I143)","v":0}]
["TOTAL GASTOS INDIRECTOS ",null,null,"TOTAL GASTOS INDIRECTOS",null,null,null,{"$f":"+H90+H96+H102+H108+H114+H120+H126+H132+H138+H144","v":0},{"$f":"+I90+I96+I102+I108+I114+I120+I126+I132+I138+I144","v":0}]
["TOTAL GASTOS",null,null,null,null,null,"TOTAL",{"$f":"+H145+H83","v":0},{"$f":"+I145+I83","v":0}]
[]
[]
["El Sr./Sra. (indicar el nombre y apellidos de la persona representante que firma la justificación) con DNI/NIE (indicar el núm. DNI) en calidad de persona física beneficiaria o representante legal de la persona jurídica beneficiaria (indicar nombre y apellidos) con NIF (indicar núm DNI)."]
["CERTIFICA que los gastos imputados al proyecto/actividad/servicio subvencionado han sido efectivamente efectuados; que custodiará la documentación soporte que lo acredita; que esta documentación se encuentra a disposición del Ayuntamiento de Barcelona o de los otros entes municipales en los archivos de esta Entidad, durante un período mínimo de 4 años a contar desde la fecha de presentación de la presente justificación."]
[]
[]
[]
[]
[null,"Población y fecha: ",null,null,"Firma y sello (en caso de registro físico)"]
[]
[]
["Notas:"]
["(*) Deben relacionarse todos los gastos del proyecto/actividad/servicio subvencionado. En el caso de que el número de filas de cada concepto sea insuficiente podéis insertar líneas dentro del mismo concepto seleccionando una celda verde y haciendo clic sobre el botón de insertar línea."]
["(0) El número de orden debe ser correlativo comenzando por D.1.1, D.1.2, D.1.3, D.2.4, etc."]
["(1) Respecto a los gastos de recursos humanos, puede ser subvencionable el coste total salarial mensual, que corresponde a la suma de la retribución bruta que aparece en la nómina del trabajador/a más la cuota de la empresa a la Seg. Social. Los gastos de personal se justifican con la nómina del trabajador/a acompañada de los correspondientes TC1 y TC2 de la TGSS y el modelo 111 del IRPF."]
["(2) En el caso de que el documento justificativo del resto de gastos, no sea una factura, sino otro documento probatorio equivalente, como un recibo o justificante (como para dietas o transporte público), hay que indicarlo en la columna \"observaciones\"."]
["(3) En el caso de que un justificante incluya conceptos que no tienen que ver con el proyecto/actividad/servicio por el cual se ha otorgado la subvención, aquí sólo se debe indicar la parte que realmente se ha dedicado al proyecto."]
["(4) En esta columna se debe indicar el importe total o parcial de la factura que se imputa a la subvención recibida del Ayuntamiento de Barcelona. El total imputado, en esta columna, debe ser igual al importe de la subvención recibida."]
[]
["Modalidad Bb: Intercooperación de 1r nivel: Proyectos de intercooperación promovidos por entidades y empresas de le Economía Social y Solidaria que contribuyan al despliegue de la Estrategia BCN 2030 ESS"]
["1.  La cuantía de la subvención otorgada no superará el 80% del gasto total del proyecto a subvencionar. "]
["2.  El importe máximo de subvención para la modalidad \"b\" de la Intercooperación (Bb) es 18.000€."]
["3.  En el caso de que la solicitud presentada sobrepase el importe máximo, se considerará como importe solicitado el máximo de lo establecido en la convocatoria."]
["4.  Se limita con un máximo del 50% el importe de la subvención para gastos de personal propio que participa de forma directa y debidamente en el proyecto."]
["5.  La suma de personal propio asignado al proyecto (de la entidad solicitante y participantes del acuerdo cooperación) no podrá superar el 50% del importe de la subvención. En esta modalidad se aceptará la imputación de gastos de personal propio de las entidades participantes firmantes según el acuerdo de cooperación."]
["6.  La imputación de gastos indirectos no podrá exceder de un 10% del total de la subvención otorgada (punto 13.7 de las bases reguladoras)."]
["7.  El carácter subvencionable del gasto de amortización estará sujeto a las condiciones siguientes:"]
["* Que las subvenciones no hayan contribuido en la compra de los bienes."]
["* Que la amortización se calcule de conformidad con las normas de contabilidad generalmente aceptadas."]
["* Que el coste se refiera al período subvencionable."]
["8.  En ningún caso se considerarán gastos subvencionables:"]
["* Los impuestos indirectos cuando sean susceptibles de recuperación o compensación, ni los impuestos sobre la renta."]
["* Los gastos de inversión, incluidas las adquisiciones de bienes muebles."]
["* Los gastos realizados con fecha anterior al inicio del proyecto y fecha posterior a la finalización del proyecto."]
["* Otros gastos que se indiquen en la convocatoria."]
["9.  No serán elegibles facturas de empresas emitidas entre las entidades participantes del acuerdo de cooperación."]
["10.  Cuando deban hacerse gastos de más de 12.000 €, sin IVA, en el caso de prestaciones de servicios o entrega de bienes se deberán incorporar tres presupuestos solicitados y argumentar el motivo de la adjudicación en el caso de no ser la propuesta más favorable económicamente."]
["11. Los salarios percibidos por las personas contratadas en el marco del proyecto subvencionado no sean inferiores a 1.088,56€ brutos mensuales (13.062,72€ brutos en cómputo anual) en el caso de jornadas completas, o la parte proporcional en el caso de jornadas parciales (punto 7 de las bases 2019: Requisitos de los proyectos)."]
["12. Los materiales producidos de difusión, estudios, informes o materiales didácticos utilizados, etc. en el caso de tratarse de gasto elegible de la subvención, deberán tener licencia Creative Commons -Compartir Igual- (share alike) y no podrán tener la condición –Sin Obras Derivadas- (no derivate Works)."]
["13. La no realización de la actividad subvencionada o el incumplimiento de las condiciones que fueron consideradas para el otorgamiento de la subvención, así como la falta de justificación o la justificación incompleta o incorrecta de la actividad subvencionada, puede comportar el reintegro total o parcial de la subvención por parte de la organización beneficiaria (punto 19 bases reguladoras)."]

{"sheet":"Relación de ingresos ","index":1,"n_rows":69,"n_cols":10,"rows_kept":69,"cut":false,"hidden":false,"merged":[[13,6,13,9],[25,6,25,9],[33,6,33,9],[32,6,32,9],[28,6,28,9],[17,6,17,9],[16,6,16,9],[15,6,15,9],[30,6,30,9],[37,6,37,9],[23,0,23,3],[43,6,43,9],[42,6,42,9],[41,6,41,9],[36,6,36,9],[35,6,35,9],[18,0,18,3],[39,0,39,9],[40,6,40,9],[23,6,23,9],[22,6,22,9],[21,6,21,9],[20,6,20,9],[31,6,31,9],[18,6,18,9],[26,6,26,9],[27,6,27,9],[24,0,24,9],[29,0,29,9],[34,0,34,9],[33,0,33,3],[28,0,28,3],[0,0,0,9],[9,0,9,9],[14,0,14,9],[19,0,19,9],[7,6,8,9],[10,6,10,9],[11,6,11,9],[7,0,8,0],[12,6,12,9],[3,2,3,3],[2,2,2,3],[6,0,6,3],[4,2,4,3],[7,2,7,3],[7,1,8,1],[13,0,13,3],[44,0,44,9],[49,0,49,9],[48,6,48,9],[38,0,38,3],[50,6,50,9],[48,0,48,3],[43,0,43,3],[46,6,46,9],[45,6,45,9],[38,6,38,9],[64,1,64,2],[55,6,55,9],[51,6,51,9],[57,6,57,9],[52,6,52,9],[53,6,53,9],[54,6,54,9],[57,0,57,3],[56,0,56,3],[59,0,59,9],[60,0,61,9],[56,6,56,9]]}
["Detalle de todos los ingresos obtenidos y aportaciones del propio beneficiario para la ejecución de la actividad subvencionada"]
[]
[null,"Nombre de la persona física/jurídica beneficiaria:        ",{"$f":"IF('Relación de gastos'!C3:D3<>\"\",'Relación de gastos'!C3:D3,\"\")","v":""},null,"Importe total del proyecto:",null,null,{"$f":"IF(+'Relación de gastos'!H3=\"\",\"\",+'Relación de gastos'!H3)","v":""},"euros"]
[null,"Código de subvención:",{"$f":"IF('Relación de gastos'!C4:D4<>\"\",'Relación de gastos'!C4:D4,\"\")","v":""},null,"Importe de la subvención otorgada:",null,null,{"$f":"IF(+'Relación de gastos'!H4=\"\",\"\",+'Relación de gastos'!H4)","v":""},"euros"]
[null,"Nombre del proyecto subvencionado:",{"$f":"IF('Relación de gastos'!C5:D5<>\"\",'Relación de gastos'!C5:D5,\"\")","v":""},null,"Período de ejecución del proyecto subvencionado:",null,null,{"$f":"IF(+'Relación de gastos'!H5=\"\",\"\",+'Relación de gastos'!H5)","v":""},"a",{"$f":"IF(+'Relación de gastos'!K5=\"\",\"\",+'Relación de gastos'!K5)","v":""}]
[]
["Ingresos del proyecto/actividad/servicio subvencionado"]
["Núm. de orden (0)","Concepto del ingreso","Emisor del ingreso",null,"Fecha de cobro\n(dd/mm/aaaa)","Importe","Observaciones"]
[null,null,"NIF","Nombre","(1)","euros"]
["A. Subvención municipal "]
[]
[]
[]
[null,null,null,null,"Subtotal A",{"$f":"SUM(F11:F13)","v":0}]
["B. Subvenciones de otros administraciones"]
[]
[]
[]
[null,null,null,null,"Subtotal B",{"$f":"SUM(F16:F18)","v":0}]
["C. Subvenciones de entes privados"]
[]
[]
[]
[null,null,null,null,"Subtotal C",{"$f":"SUM(F21:F23)","v":0}]
["D. Recursos propios de la entidad aplicados al proyecto"]
[]
[]
[]
[null,null,null,null,"Subtotal D",{"$f":"SUM(F26:F28)","v":0}]
["E. Taquillaje"]
[]
[]
[]
[null,null,null,null,"Subtotal E",{"$f":"SUM(F31:F33)","v":0}]
["F. Cuotas de inscripción"]
[]
[]
[]
[null,null,null,null,"Subtotal F",{"$f":"SUM(F36:F38)","v":0}]
["G. Venta de Productos"]
[]
[]
[]
[null,null,null,null,"Subtotal G",{"$f":"SUM(F41:F43)","v":0}]
["H. Publicidad y/o Esponsorización"]
[]
[]
[]
[null,null,null,null,"Subtotal H",{"$f":"SUM(F46:F48)","v":0}]
["I. Otros ingresos"]
[]
[]
[]
[]
[]
[]
[null,null,null,null,"Subtotal I",{"$f":"SUM(F51:F56)","v":0}]
["Total INGRESOS",null,null,null,"TOTAL",{"$f":"+F14+F19+F24+F29+F34+F39+F44+F49+F57","v":0}]
[]
[{"$f":"'Relación de gastos'!A149:K149","v":"El Sr./Sra. (indicar el nombre y apellidos de la persona representante que firma la justificación) con DNI/NIE (indicar el núm. DNI) en calidad de persona física beneficiaria o representante legal de la persona jurídica beneficiaria (indicar nombre y apellidos) con NIF (indicar núm DNI)."}]
["CERTIFICA que los ingresos imputados al proyecto/actividad/servicio subvencionado han sido efectivamente ingresados; que custodiará la documentación soporte que lo acredita; que esta documentación se encuentra a disposición del Ayuntamiento de Barcelona o de los otros entes municipales en los archivos de esta Entidad, durante un período mínimo de 4 años a contar desde la fecha de presentación de la presente justificación."]
[]
[]
[]
[null,"Población y fecha: ",null,null,"Firma y sello (en caso de registro físico)"]
[]
[null,"Nota:"]
[null,"(0) El número de orden debe ser correlativo comenzando por el número 1"]
[null,"(1) En caso de que el ingreso esté pendiente de cobro, indicar \"P. Cobro\" "]

{"sheet":"gastos e ingresos","index":2,"n_rows":104,"n_cols":11,"rows_kept":104,"cut":false,"hidden":false,"merged":[[48,0,48,10],[49,0,49,10],[50,0,50,10],[51,0,51,10],[54,0,54,10],[52,0,52,10],[53,0,53,10],[4,0,4,1],[4,2,4,3],[4,5,4,6],[5,0,5,1],[5,2,5,3],[5,5,5,6],[9,0,9,1],[9,6,9,7],[6,5,6,7],[25,0,26,1],[25,2,26,2],[25,3,26,3],[6,0,6,1],[6,2,6,3],[45,1,45,2],[40,0,40,9],[10,8,11,8],[10,9,11,9],[10,0,11,1],[10,2,11,2],[10,3,11,3],[10,6,11,7],[28,6,28,7],[41,0,42,9],[28,8,28,9],[36,7,38,10],[27,6,27,7]]}
[]
[]
["Estado de los gastos realizados y de los ingresos obtenidos para la ejecución de la actividad subvencionada (*)"]
[]
["Nombre de la persona física/jurídica beneficiaria:         ",null,{"$f":"IF('Relación de gastos'!C3:D3<>\"\",'Relación de gastos'!C3:D3,\"\")","v":""},null,null,"Importe total del proyecto:",null,{"$f":"'Relación de ingresos '!H3","v":""},"euros"]
["Código de subvención:",null,{"$f":"IF('Relación de gastos'!C4:D4<>\"\",'Relación de gastos'!C4:D4,\"\")","v":""},null,null,"Importe de la subvención otorgada:",null,{"$f":"'Relación de ingresos '!H4","v":""},"euros"]
["Nombre del proyecto subvencionado:",null,{"$f":"IF('Relación de gastos'!C5:D5<>\"\",'Relación de gastos'!C5:D5,\"\")","v":""},null,null,"Período de ejecución del proyecto subvencionado:",null,null,{"$f":"'Relación de ingresos '!H5","v":""},"a",{"$f":"'Relación de ingresos '!J5","v":""}]
[]
["SUBVENCIONES PARA LA PROMOCIÓN Y REFUERZO DE LA ECONOMÍA SOCIAL Y SOLIDARIA 2020"]
["GASTOS PREVISTOS",null,"importe en euros",null,null,null,"INGRESOS PREVISTOS",null,"importe en euros"]
["Gastos directos \n(aquellos que se identifican directamente con el proyecto)",null,"Previsión inicial o reformulada ya aprovada (1)","Gastos realizados (2)","Diferencia\n",null,"Ingresos previstos",null,"Previsión inicial (1)","Ingresos obtenidos (3)"]
[null,null,null,null,"(2-1)"]
["Bb","D1. Nóminas y seguridad social IRPF (régimen general o régimen de autónomos) del personal propio vinculado al proyecto subvencionado de la Agrupación (MÁX. 50% subvención)",null,{"$f":"'Relación de gastos'!H16","v":0},{"$f":"+C13-D13","v":0},{"$f":"+IF(D13<0,\"No s'admeten valors negatius\",\"\")","v":""},"A.","Subvención municipal (importe solicitado en la instancia/otorgado)",null,{"$f":"'Relación de ingresos '!F14","v":0},{"$f":"+IF(J13<0,\"No s'admeten valors negatius\",IF(J13<>'Relación de ingresos '!F14,\"No coincideix amb import pestanya anterior\",\"\"))","v":""}]
[null,"D2.  Trabajos realizados por profesionales y empresas externas directamente vinculadas al proyecto subvencionado",null,{"$f":"'Relación de gastos'!H22","v":0},0,{"$f":"+IF(D14<0,\"No s'admeten valors negatius\",\"\")","v":""},"B.","Subvenciones de otras administraciones",null,{"$f":"'Relación de ingresos '!F19","v":0},{"$f":"+IF(J14<0,\"No s'admeten valors negatius\",\"\")","v":""}]
[null,"D3.  Alquiler de bienes muebles/inmuebles directamente vinculados al proyecto subvencionado",null,{"$f":"'Relación de gastos'!H28","v":0},0,"","C.","Subvenciones de entes privados",null,{"$f":"'Relación de ingresos '!F24","v":0},""]
[null,"D4. Adquisición de materiales y bienes consumibles íntegramente imputables al proyecto subvencionado",null,{"$f":"'Relación de gastos'!H34","v":0},0,"","D.","Recursos propios de la entidad aplicados al proyecto",null,{"$f":"'Relación de ingresos '!F29","v":0},""]
[null,"D5. Transporte – mensajería imputables al proyecto subvencionado",null,{"$f":"'Relación de gastos'!H40","v":0},0,"","E.","Taquillaje",null,{"$f":"'Relación de ingresos '!F34","v":0},""]
[null,"D6. Publicidad y propaganda de las actividades directamente vinculadas al proyecto subvencionado",null,{"$f":"'Relación de gastos'!H46","v":0},0,"","F.","Cuotas de inscripción",null,{"$f":"'Relación de ingresos '!F39","v":0},""]
[null,"D7.  Alojamiento y dietas, del personal contratado y voluntarios",null,{"$f":"'Relación de gastos'!H52","v":0},{"$f":"+C19-D19","v":0},"","G.","Venta de Productos",null,{"$f":"'Relación de ingresos '!F44","v":0},""]
[null,"D8. Ajudas en el transporte para los/as participantes de los proyectos en caso de que sea necesario de manera justificada",null,{"$f":"'Relación de gastos'!H58","v":0},{"$f":"+C20-D20","v":0},"","H","Publicidad y/o Esponsorización",null,{"$f":"'Relación de ingresos '!F49","v":0},""]
[null,"D9.  Viajes y desplazamientos imputables a las actividades del proyecto subvencionado",null,{"$f":"'Relación de gastos'!H64","v":0},{"$f":"+C21-D21","v":0},{"$f":"+IF(D21<0,\"No s'admeten valors negatius\",\"\")","v":""},"I.","Otros ingresos",null,{"$f":"'Relación de ingresos '!F57","v":0},""]
[null,"D10. Tributos, cuando sean abonados directamente por la persona jurídica o física beneficiaria",null,{"$f":"'Relación de gastos'!H70","v":0},{"$f":"+C22-D22","v":0},{"$f":"+IF(D22<0,\"No s'admeten valors negatius\",\"\")","v":""},null,"Total Ingresos",{"$f":"SUM(I13:I21)","v":0},{"$f":"SUM(J13:J21)","v":0}]
[null,"D11.  Otros gastos que de manera justificada y por la tipología del proyecto puedan imputarse directamente al proyecto subvencionado",null,{"$f":"'Relación de gastos'!H76","v":0},{"$f":"+C23-D23","v":0},""]
[null,"D12.  Aportaciones a fondo de contingencia ",null,{"$f":"'Relación de gastos'!H82","v":0},{"$f":"+C24-D24","v":0},""]
[null,"Total Gastos Directos   ",{"$f":"SUM(C13:C24)","v":0},{"$f":"SUM(D13:D24)","v":0},{"$f":"SUM(E13:E24)","v":0}]
["Gastos indirectos \n(no se pueden asignar directamente al proyecto sin utilizar algún % de asignación)",null,"Previsión inicial o reformulada ya aprovada (1)","Gastos realizados (2)","Diferencia\n"]
[null,null,null,null,"(2-1)"]
["Bb","I1.  Personal de soporte en el proyecto (nóminas y seguridad social)",null,{"$f":"'Relación de gastos'!H90","v":0},{"$f":"+C28-D28","v":0},{"$f":"+IF(D28<0,\"No s'admeten valors negatius\",\"\")","v":""},"Ingresos menos gastos ",null,{"$f":"+I22-C39","v":0},{"$f":"+J22-D39","v":0}]
[null,"I2.  Seguros",null,{"$f":"'Relación de gastos'!H96","v":0},0,{"$f":"+IF(D29<0,\"No s'admeten valors negatius\",\"\")","v":""},"Desviación de Gastos (4)",null,"Desviación de ingresos (4)"]
[null,"I.3  Amortización",null,{"$f":"'Relación de gastos'!H102","v":0},0,{"$f":"+IF(D30<0,\"No s'admeten valors negatius\",\"\")","v":""},"Importe"," % ","Importe","%"]
[null,"I.4  Alquiler de bienes inmuebles",null,{"$f":"'Relación de gastos'!H108","v":0},0,"",{"$f":"D39-C39","v":0},{"$f":"D39/C39","v":{"$error":"#DIV/0!"}},{"$f":"J22-I22","v":0},{"$f":"J22/I22","v":{"$error":"#DIV/0!"}}]
[null,"I.5  Adquisición de materiales y bienes consumibles parcialmente imputables al proyecto",null,{"$f":"'Relación de gastos'!H114","v":0},0,"",null,null,"% subvencionado inicialmente o después de reformulación (5)",{"$f":"I13/I22","v":{"$error":"#DIV/0!"}}]
[null,"I.6  Mantenimiento de edificios y/o instalaciones",null,{"$f":"'Relación de gastos'!H120","v":0},0,"",null,null,"% subvencionado después de justificación (6)",{"$f":"+J13/J22","v":{"$error":"#DIV/0!"}}]
[null,"I.7  Comunicaciones (teléfono, correos, conexión a internet)",null,{"$f":"'Relación de gastos'!H126","v":0},0,""]
[null,"I.8  Gastos financieros",null,{"$f":"'Relación de gastos'!H132","v":0},0,""]
[null,"I.9  Suministros ",null,{"$f":"'Relación de gastos'!H138","v":0},0,""]
[null,"I.10  Trabajo realizado por otras empresas, parcialmente imputables al proyecto (limpieza, seguridad...)",null,{"$f":"'Relación de gastos'!H144","v":0},0,""]
[null,"Total Gastos Indirectos   ",{"$f":"SUM(C28:C37)","v":0},{"$f":"SUM(D28:D37)","v":0},{"$f":"SUM(E28:E37)","v":0}]
[null,"Total Gastos",{"$f":"+C25+C38","v":0},{"$f":"+D25+D38","v":0},{"$f":"+E38+E25","v":0}]
[]
[{"$f":"'Relación de gastos'!A149:K149","v":"El Sr./Sra. (indicar el nombre y apellidos de la persona representante que firma la justificación) con DNI/NIE (indicar el núm. DNI) en calidad de persona física beneficiaria o representante legal de la persona jurídica beneficiaria (indicar nombre y apellidos) con NIF (indicar núm DNI)."}]
["CERTIFICA que los ingresos imputados al proyecto/actividad/servicio subvencionado han sido efectivamente ingresados; que custodiará la documentación soporte que lo acredita; que esta documentación se encuentra a disposición del Ayuntamiento de Barcelona o de los otros entes municipales en los archivos de esta Entidad, durante un período mínimo de 4 años a contar desde la fecha de presentación de la presente justificación."]
[]
[]
[]
[null,"Población y fecha: ",null,null,"Firma y sello (en caso de registro físico)"]
[]
["Notas:"]
["(*) Las columnas sombreadas en color se irán llenando automáticamente a partir de los datos introducidos en los documentes de gastos -detalle e ingresos-detalle. Por lo tanto, no imprimir esta hoja hasta haber llenado las otras."]
["(1) Previsión inicial o reformulación ya aprovada= Se debe indicar la previsión inicial de gastos y de ingresos según aquello que se indicó en el proyecto original en el \"plan de viabilidad económica del proyecto - presupuesto general\". En caso de que ya se haya aprobado una reformulación, se deben indicar las cantidades reformuladas. "]
["(2) Gastos reales = Coste real total del proyecto subvencionado. Automáticamente se introducirán los subtotales de los gastos relacionados en la hoja Gastos-detalle."]
["(3) Ingresos reales = Total de ingresos obtenidos para la realización del proyecto subvencionado. Automáticamente se introducirán los subtotales de los ingresos relacionados en la hoja Ingresos-detalle."]
["(4) Desviación: En el caso de los gastos, la desviación es la diferencia entre gastos reales y la previsión inicial de gastos; y en el caso de ingresos, la diferencia entre los ingresos reales y la previsión inicial de ingresos. "]
["(5) % financiación municipal = porcentaje que suponen las subvenciones municipales (A) respecto del total de ingresos del proyecto subvencionado."]
["(6) El % de la desviación final de gastos se calcula dividiendo el importe resultante de gastos reales - gastos previstos, entre el total de gastos previstos y de la misma manera los ingresos. En el caso de existir una desviación siempre se debe motivar."]
[]
[]
[]
[]
[]
[]
[]
[]
[]
[]
[]
[]
[]
[]
[]
[]
[]
[]
[]
[]
[]
[]
[]
[]
[]
[]
[]
[]
[]
[]
[]
[]
[]
[]
[]
[]
[]
[]
[]
[]
[]
[]
[]
[]
[]
[]
[]
[]
[null,null,0]